bitfinex-derivatives/quotes_BTCF0:USTF0_20250218
["timestamp","ask_amount","ask_price","bid_price","bid_amount"]
[1739873012495,0.1305,95894.0,95891.0,0.0414]
[1739873012907,0.2085868,95891.0,95890.0,0.0444]
[1739873013105,0.2085916,95889.0,95884.0,0.0421]
[1739873013405,0.2350529,95894.0,95884.0,0.0421]
[1739873013706,0.2085829,95893.0,95884.0,0.0421]
[1739873014305,0.2085829,95893.0,95884.0,0.0451]
[1739873014898,0.1305,95894.0,95885.0,0.2085992]
[1739873015102,0.1305,95894.0,95886.0,0.2085976]
[1739873015897,0.1305,95894.0,95887.0,0.2085954]
[1739873016107,0.1305,95894.0,95885.0,0.002]
[1739873016407,0.1305,95894.0,95886.0,0.2085973]
[1739873016707,0.00524153,95895.0,95886.0,0.3648]
[1739873017206,0.00524153,95895.0,95894.0,0.2085803]
[1739873018203,0.00524153,95895.0,95890.0,0.2085886]
[1739873018395,0.00524153,95895.0,95888.0,0.0428]
[1739873018709,0.00524153,95895.0,95891.0,0.2085861]
[1739873018897,0.00524153,95895.0,95892.0,0.2085828]
[1739873019208,0.00624153,95895.0,95888.0,0.0428]
[1739873019501,0.00624153,95895.0,95893.0,0.2085809]
[1739873019694,0.00624153,95895.0,95894.0,0.041]
[1739873019899,0.00524153,95895.0,95894.0,0.041]
[1739873021506,0.00624153,95895.0,95894.0,0.041]
[1739873022205,0.00524153,95895.0,95894.0,0.041]
[1739873022401,0.00624153,95895.0,95894.0,0.041]
[1739873023905,0.00624153,95895.0,95894.0,0.2495803]
[1739873027209,0.00624153,95895.0,95894.0,0.22462228]
[1739873029208,0.00624153,95895.0,95894.0,0.58542228]
[1739873033301,0.2164,95939.0,95894.0,0.58542228]
[1739873033302,0.3608,95929.0,95894.0,0.37684198]
[1739873033499,0.0851,95916.0,95909.0,0.2085476]
[1739873034411,0.00643458,95910.0,95909.0,0.2085476]
[1739873035207,0.01243458,95910.0,95909.0,0.2095476]
[1739873035506,0.01743458,95910.0,95909.0,0.2095476]
[1739873044510,0.01727816,95910.0,95909.0,0.18859285]
[1739873047118,0.00015642,95919.0,95918.0,0.2085281]
[1739873047314,0.00015642,95919.0,95918.0,0.5693281]
[1739873048316,0.043,95927.0,95918.0,0.3618]
[1739873048516,0.1224,95931.0,95930.0,0.208502]
[1739873048723,0.083,95934.0,95933.0,0.2084955]
[1739873049423,0.08823804,95934.0,95933.0,0.2084955]
[1739873050216,0.08823804,95934.0,95930.0,0.001]
[1739873050432,0.0423,95933.0,95930.0,0.001]
[1739873051322,0.0423,95933.0,95926.0,0.23334638]
[1739873051819,0.0443,95933.0,95930.0,0.001]
[1739873052920,0.0423,95933.0,95930.0,0.001]
[1739873053225,0.0443,95933.0,95930.0,0.002]
[1739873058525,0.53938633,95934.0,95930.0,0.002]
[1739873058726,0.53882632,95934.0,95930.0,0.002]
[1739873058927,0.0053255,95931.0,95930.0,0.002]
[1739873059630,0.0053255,95931.0,95930.0,0.001]
[1739873059834,0.0053255,95931.0,95930.0,0.002]
[1739873060532,0.0053255,95931.0,95930.0,0.001]
[1739873060735,0.0053255,95931.0,95930.0,0.002]
[1739873061032,0.2138253,95931.0,95930.0,0.002]
[1739873061230,0.5746253,95931.0,95930.0,0.002]
[1739873061434,0.5746253,95931.0,95930.0,0.00180001]
[1739873064130,0.0053255,95931.0,95930.0,0.00180001]
[1739873064531,0.0053255,95931.0,95930.0,0.04280001]
[1739873065039,0.0053255,95931.0,95930.0,0.25130201]
[1739873067539,0.0053255,95931.0,95930.0,0.22617181]
[1739873068635,0.0404,95945.0,95944.0,0.2084716]
[1739873068832,0.00530948,95945.0,95944.0,0.5692716]
[1739873069033,0.00064,95963.0,95944.0,0.3608]
[1739873069229,0.00064,95963.0,95956.0,0.3608]
[1739873069230,0.12096,95963.0,95956.0,0.3608]
[1739873069539,0.12096,95963.0,95957.0,0.0443]
[1739873069738,0.0829,95969.0,95957.0,0.2527432]
[1739873069936,0.0829,95969.0,95958.0,0.0419]
[1739873070136,0.00521814,95959.0,95957.0,0.0214798]
[1739873070339,0.00521814,95959.0,95957.0,0.2084427]
[1739873070729,0.00521814,95959.0,95958.0,0.0419]
[1739873071036,0.00521814,95959.0,95958.0,0.0845]
[1739873071542,0.00721814,95959.0,95958.0,0.0845]
[1739873071741,0.002,95959.0,95958.0,0.0845]
[1739873071926,0.0406,95974.0,95958.0,0.0845]
[1739873072235,0.0406,95974.0,95968.0,0.3608]
[1739873072436,0.0406,95974.0,95969.0,0.0408]
[1739873072437,0.16156,95974.0,95969.0,0.0408]
[1739873072641,0.0406,95974.0,95969.0,0.0408]
[1739873072835,0.0414,95980.0,95970.0,0.0441]
[1739873073033,0.90984001,95999.0,95970.0,0.0441]
[1739873073034,0.00526654,95971.0,95970.0,0.35691051]
[1739873073241,0.0414,95990.0,95980.0,0.208393]
[1739873073444,0.0414,95990.0,95981.0,0.0408]
[1739873073635,0.12088,95989.0,95981.0,0.0408]
[1739873073837,0.0414,95990.0,95981.0,0.0408]
[1739873074035,0.12076,95989.0,95981.0,0.0408]
[1739873075336,0.12076,95989.0,95981.0,0.0418]
[1739873076135,0.12076,95989.0,95981.0,0.0428]
[1739873076743,0.0414,95990.0,95981.0,0.0428]
[1739873076744,0.00534794,95982.0,95981.0,0.0428]
[1739873077731,0.00534794,95982.0,95981.0,0.002]
[1739873078540,0.36614794,95982.0,95981.0,0.002]
[1739873078939,0.00534794,95982.0,95981.0,0.002]
[1739873083741,0.0427,95984.0,95981.0,0.002]
[1739873083936,0.2083877,95983.0,95981.0,0.002]
[1739873084842,0.2083916,95981.0,95976.0,0.00015633]
[1739873085042,0.3608,95977.0,95976.0,0.00015633]
[1739873086044,0.4021,95977.0,95976.0,0.00015633]
[1739873088436,0.6104999,95977.0,95976.0,0.00015633]
[1739873094348,0.6104999,95977.0,95976.0,0.00115633]
[1739873095447,0.2084346,95961.0,95960.0,0.00156289]
[1739873096236,0.2084639,95948.0,95923.0,0.3608]
[1739873096443,0.10433454,95950.0,95941.0,0.0817]
[1739873096743,0.0832,95947.0,95941.0,0.10376047]
[1739873096941,0.12104,95946.0,95943.0,0.2084736]
[1739873097247,0.0428,95947.0,95944.0,0.2084714]
[1739873097436,0.0404,95952.0,95944.0,0.2084714]
[1739873097641,0.3608,95953.0,95944.0,0.5692714]
[1739873097850,0.2084542,95952.0,95941.0,0.10876047]
[1739873098246,0.2084565,95951.0,95941.0,0.31723807]
[1739873098544,0.2084561,95952.0,95944.0,0.005]
[1739873098745,0.3608,95953.0,95944.0,0.005]
[1739873098746,0.2084574,95951.0,95944.0,0.005]
[1739873098946,0.2084589,95950.0,95944.0,0.005]
[1739873099143,0.3608,95953.0,95941.0,0.11476047]
[1739873099344,0.2084693,95946.0,95941.0,0.11476047]
[1739873099552,0.2084693,95946.0,95944.0,0.004]
[1739873100051,0.2084588,95950.0,95944.0,0.004]
[1739873100245,0.3608,95953.0,95944.0,0.004]
[1739873100440,0.2084694,95945.0,95944.0,0.004]
[1739873100842,0.3608,95953.0,95944.0,0.009]
[1739873101136,0.3608,95953.0,95944.0,0.005]
[1739873101137,0.2084678,95946.0,95944.0,0.005]
[1739873101453,0.042,95945.0,95944.0,0.009]
[1739873101649,0.16296,95945.0,95944.0,0.009]
[1739873101952,0.16296,95945.0,95944.0,0.004]
[1739873102245,0.16296,95945.0,95944.0,0.009]
[1739873103047,0.7322294,95945.0,95944.0,0.009]
[1739873103353,0.6112694,95945.0,95944.0,0.009]
[1739873103551,0.4028,95945.0,95944.0,0.009]
[1739873103947,0.48164,95945.0,95944.0,0.009]
[1739873104251,0.48164,95945.0,95944.0,0.004]
[1739873104448,0.48164,95945.0,95944.0,0.001]
[1739873105054,0.48164,95945.0,95938.0,0.02222398]
[1739873105248,0.3608,95945.0,95941.0,0.2084778]
[1739873105448,0.3608,95945.0,95934.0,0.0853]
[1739873105649,0.3608,95945.0,95936.0,0.2084888]
[1739873106051,0.3608,95945.0,95934.0,0.0853]
[1739873106257,0.36136001,95953.0,95943.0,0.2084735]
[1739873106559,0.3608,95953.0,95940.0,0.10433454]
[1739873106959,0.0414,95965.0,95952.0,0.2084542]
[1739873107252,0.0414,95965.0,95950.0,0.3608]
[1739873107253,0.3608,95957.0,95953.0,0.1255]
[1739873107460,0.3608,95957.0,95950.0,0.3608]
[1739873107755,0.3608,95957.0,95938.0,0.3608]
[1739873107756,0.2084499,95954.0,95944.0,0.001]
[1739873107952,0.0421,95953.0,95944.0,0.001]
[1739873108347,0.2494561,95952.0,95941.0,0.1255]
[1739873109053,0.041,95952.0,95941.0,0.1255]
[1739873109253,0.10433454,95951.0,95941.0,0.1255]
[1739873110049,0.10433454,95951.0,95941.0,0.0409]
[1739873110364,0.2084747,95943.0,95941.0,0.0409]
[1739873110752,0.2084759,95942.0,95941.0,0.0409]
[1739873110947,0.3608,95947.0,95935.0,0.086]
[1739873111157,0.2084833,95939.0,95935.0,0.1305]
[1739873111348,0.2084869,95937.0,95935.0,0.1305]
[1739873111854,0.0854,95941.0,95935.0,0.1305]
[1739873112452,0.041,95941.0,95935.0,0.1305]
[1739873113055,0.3608,95947.0,95935.0,0.1305]
[1739873113256,0.3608,95947.0,95938.0,0.2084836]
[1739873113459,0.3608,95947.0,95941.0,0.2084779]
[1739873113659,0.00015603,95955.0,95944.0,0.2084708]
[1739873113859,0.00015603,95955.0,95945.0,0.0445]
[1739873114157,0.00015603,95955.0,95950.0,0.5692581]
[1739873114353,0.00015603,95955.0,95951.0,0.0428]
[1739873115162,0.00015603,95955.0,95953.0,0.2084507]
[1739873115460,0.00015603,95955.0,95951.0,0.0428]
[1739873117657,0.00015603,95955.0,95950.0,0.3608]
[1739873117961,0.00015603,95955.0,95946.0,0.0405]
[1739873118361,0.00015603,95955.0,95946.0,0.2489661]
[1739873118866,0.00015603,95955.0,95947.0,0.2084645]
[1739873119075,0.00015603,95955.0,95948.0,0.3608]
[1739873119564,0.00015603,95955.0,95950.0,0.2084577]
[1739873120362,0.00015603,95955.0,95948.0,0.3608]
[1739873121064,0.00015603,95955.0,95946.0,0.0405]
[1739873121264,0.20860393,95955.0,95946.0,0.0405]
[1739873121568,0.00015603,95955.0,95949.0,0.3608]
[1739873123969,0.3608,95950.0,95946.0,0.0405]
[1739873124164,0.2084637,95948.0,95946.0,0.0405]
[1739873124374,0.0422,95949.0,95946.0,0.0405]
[1739873125065,0.0422,95949.0,95942.0,0.0422]
[1739873125066,0.2084678,95946.0,95942.0,0.0422]
[1739873125464,0.0422,95949.0,95942.0,0.0422]
[1739873125666,0.12016,95948.0,95942.0,0.0422]
[1739873129289,0.12016,95948.0,95942.0,0.2506741]
[1739873129492,0.0422,95949.0,95942.0,0.0422]
[1739873130890,0.2084675,95946.0,95939.0,0.3608]
[1739873131187,0.0421,95945.0,95939.0,0.3608]
[1739873132983,0.0421,95945.0,95939.0,0.27598991]
[1739873133491,0.0422,95949.0,95939.0,0.27598991]
[1739873133691,0.3608,95940.0,95938.0,0.0832]
[1739873133888,0.5692806,95940.0,95938.0,0.0422]
[1739873134090,0.0404,95939.0,95938.0,0.0422]
[1739873134388,0.15952,95939.0,95938.0,0.0422]
[1739873134587,0.11912,95939.0,95938.0,0.0422]
[1739873136698,0.11912,95939.0,95934.0,0.02166882]
[1739873136894,0.0407,95938.0,95931.0,0.0841]
[1739873137289,0.2084889,95936.0,95931.0,0.10373003]
[1739873137797,0.2084889,95936.0,95934.0,0.001]
[1739873138294,0.2084911,95935.0,95934.0,0.001]
[1739873138997,0.0415,95937.0,95931.0,0.0185514]
[1739873139197,0.0415,95937.0,95930.0,0.00015633]
[1739873139698,0.2084965,95933.0,95930.0,0.00015633]
[1739873140095,0.2084965,95933.0,95931.0,0.002]
[1739873140392,0.5692976,95932.0,95931.0,0.002]
[1739873140593,0.2084998,95931.0,95930.0,0.00215633]
[1739873141001,0.2084998,95931.0,95930.0,0.00015633]
[1739873141893,0.2084998,95931.0,95930.0,0.00215633]
[1739873143906,0.2084998,95931.0,95930.0,0.00115633]
[1739873144599,0.21363287,95931.0,95930.0,0.00115633]
[1739873145000,0.2085302,95917.0,95916.0,0.0856]
[1739873145196,0.2085302,95917.0,95916.0,0.01921968]
[1739873145396,0.3608,95920.0,95895.0,0.0818]
[1739873145601,0.2085389,95913.0,95897.0,0.2523736]
[1739873145791,0.2085389,95913.0,95897.0,0.0438]
[1739873145991,0.2085389,95913.0,95900.0,0.208566]
[1739873146199,0.2085389,95913.0,95903.0,0.00015633]
[1739873146396,0.0883,95916.0,95912.0,0.02072841]
[1739873146592,0.2968329,95916.0,95913.0,0.0867]
[1739873146791,0.0883,95916.0,95913.0,0.0867]
[1739873147096,0.2085368,95914.0,95913.0,0.0867]
[1739873148289,0.2085389,95913.0,95912.0,0.02121972]
[1739873150002,0.2105389,95913.0,95912.0,0.02121972]
[1739873150592,0.002,95913.0,95912.0,0.02121972]
[1739873150799,0.002,95913.0,95912.0,0.22976082]
[1739873152101,0.002,95913.0,95912.0,0.02121972]
[1739873152900,0.3608,95920.0,95912.0,0.02121972]
[1739873153199,0.2085329,95916.0,95912.0,0.02321972]
[1739873153399,0.0421,95919.0,95912.0,0.02321972]
[1739873153597,0.002,95913.0,95912.0,0.02121972]
[1739873153795,0.002,95913.0,95912.0,0.01965618]
[1739873154109,0.0421,95919.0,95911.0,0.0409]
[1739873154608,0.0421,95919.0,95904.0,0.0858]
[1739873154808,0.10433454,95914.0,95904.0,0.10560136]
[1739873155010,0.0421,95919.0,95905.0,0.0434]
[1739873155197,0.46777454,95920.0,95907.0,0.2085519]
[1739873155397,0.67565874,95920.0,95907.0,0.2085519]
[1739873155705,0.67365874,95920.0,95907.0,0.2085519]
[1739873155902,0.002,95913.0,95907.0,0.2085519]
[1739873156309,0.67421875,95920.0,95907.0,0.2085519]
[1739873156494,0.67365874,95920.0,95907.0,0.2085519]
[1739873157006,0.001,95913.0,95907.0,0.2085519]
[1739873157599,0.2085259,95919.0,95907.0,0.2085519]
[1739873157794,0.46669455,95920.0,95905.0,0.0434]
[1739873158005,0.3618,95920.0,95905.0,0.0434]
[1739873158201,0.11996,95919.0,95910.0,0.2085433]
[1739873158404,0.36244,95920.0,95910.0,0.2085433]
[1739873158602,0.3618,95920.0,95911.0,0.208543]
[1739873158918,0.3618,95920.0,95911.0,0.2085424]
[1739873159401,0.001,95913.0,95911.0,0.2085424]
[1739873160605,0.3618,95920.0,95905.0,0.0434]
[1739873160801,0.12016,95919.0,95905.0,0.0434]
[1739873161110,0.3608,95912.0,95905.0,0.0434]
[1739873161300,0.0445,95911.0,95905.0,0.0434]
[1739873161804,0.2085542,95906.0,95904.0,0.10560136]
[1739873162000,0.2530455,95911.0,95904.0,0.10560136]
[1739873162310,0.2085457,95910.0,95904.0,0.10560136]
[1739873162509,0.2085479,95909.0,95904.0,0.10560136]
[1739873163011,0.043,95908.0,95904.0,0.0950256]
[1739873163211,0.0445,95911.0,95904.0,0.0950256]
[1739873163405,0.0455,95911.0,95905.0,0.0431]
[1739873163910,0.001,95909.0,95905.0,0.0431]
[1739873164903,0.001,95909.0,95904.0,0.06270136]
[1739873165102,0.2095481,95909.0,95904.0,0.06270136]
[1739873165302,0.2085527,95907.0,95904.0,0.06270136]
[1739873166911,0.2095527,95907.0,95904.0,0.06270136]
[1739873167208,0.001,95907.0,95903.0,0.00015633]
[1739873167409,0.5693585,95904.0,95903.0,0.00015633]
[1739873167615,0.2085788,95895.0,95888.0,0.086]
[1739873167816,0.2085788,95895.0,95888.0,0.14673781]
[1739873168109,0.2515804,95894.0,95888.0,0.14673781]
[1739873168814,0.043,95894.0,95888.0,0.14673781]
[1739873169013,0.3608,95895.0,95888.0,0.14673781]
[1739873169215,0.3608,95895.0,95888.0,0.15073781]
[1739873169411,0.00015641,95901.0,95888.0,0.15073781]
[1739873169626,0.00015641,95901.0,95895.0,0.208578]
[1739873169817,0.00015641,95901.0,95888.0,0.14673781]
[1739873169818,0.00015641,95901.0,95897.0,0.3608]
[1739873170010,0.00015641,95901.0,95900.0,0.2085672]
[1739873170206,0.00015641,95901.0,95898.0,0.0411]
[1739873170919,0.00015641,95901.0,95899.0,0.0412]
[1739873171316,0.00015641,95901.0,95900.0,0.0423]
[1739873172711,0.00015641,95901.0,95900.0,0.0433]
[1739873172913,0.00115641,95901.0,95900.0,0.0433]
[1739873178831,0.00115641,95901.0,95900.0,0.2518672]
[1739873181232,0.00115641,95901.0,95900.0,0.0433]
[1739873181631,0.20972141,95901.0,95900.0,0.001]
[1739873183127,0.00115641,95901.0,95900.0,0.001]
[1739873185016,0.20972141,95901.0,95900.0,0.001]
[1739873185628,0.00115641,95901.0,95888.0,0.01395403]
[1739873185830,0.2085808,95894.0,95882.0,0.0836]
[1739873186027,0.088,95893.0,95885.0,0.2085989]
[1739873186224,0.16014,95892.0,95885.0,0.2085989]
[1739873186424,0.0407,95892.0,95885.0,0.2085989]
[1739873186625,0.0407,95892.0,95887.0,0.01771309]
[1739873186922,0.0407,95892.0,95882.0,0.4444]
[1739873187724,0.0407,95892.0,95888.0,0.004]
[1739873187924,0.0407,95892.0,95888.0,0.008]
[1739873188323,0.0407,95892.0,95888.0,0.004]
[1739873188532,0.0407,95892.0,95887.0,0.01765096]
[1739873188727,0.0407,95892.0,95882.0,0.45708]
[1739873188927,0.0407,95892.0,95882.0,0.4504]
[1739873189235,0.0407,95892.0,95888.0,0.004]
[1739873189624,0.0407,95892.0,95887.0,0.02268646]
[1739873189824,0.0407,95892.0,95888.0,0.004]
[1739873191533,0.0407,95892.0,95887.0,0.0219918]
[1739873191722,0.0407,95892.0,95888.0,0.004]
[1739873191924,0.0407,95892.0,95891.0,0.2085868]
[1739873192431,0.0407,95892.0,95888.0,0.2165931]
[1739873192830,0.0407,95892.0,95891.0,0.2085868]
[1739873193226,0.0407,95892.0,95891.0,0.2115868]
[1739873193528,0.0419,95900.0,95891.0,0.003]
[1739873193727,0.0411,95899.0,95892.0,0.0834]
[1739873194128,0.0411,95899.0,95898.0,0.2085716]
[1739873195533,0.0411,95899.0,95898.0,0.2095716]
[1739873195734,0.0411,95899.0,95898.0,0.001]
[1739873196934,0.2496694,95899.0,95898.0,0.001]
[1739873200534,0.0411,95899.0,95887.0,0.01742018]
[1739873200730,0.3608,95888.0,95881.0,0.00015641]
[1739873201038,0.0821,95887.0,95881.0,0.00015641]
[1739873201429,0.0432,95886.0,95881.0,0.00015641]
[1739873201630,0.0432,95886.0,95881.0,0.01799098]
[1739873201929,0.0432,95886.0,95881.0,0.00615641]
[1739873202126,0.0432,95886.0,95881.0,0.0240375]
[1739873202332,0.0432,95886.0,95881.0,0.01315641]
[1739873202834,0.0432,95886.0,95881.0,0.01015641]
[1739873203729,0.0051171,95882.0,95881.0,0.01015641]
[1739873203930,0.0051171,95882.0,95881.0,0.23657498]
[1739873204437,0.0051171,95882.0,95881.0,0.23357498]
[1739873205739,0.0051171,95882.0,95881.0,0.02496648]
[1739873208028,0.0432,95886.0,95881.0,0.02496648]
[1739873208234,0.00519595,95882.0,95881.0,0.02496648]
[1739873209038,0.00519595,95882.0,95881.0,0.02196648]
[1739873209343,0.00519595,95882.0,95881.0,0.02496648]
[1739873211537,0.00519595,95882.0,95881.0,0.02196648]
[1739873211743,0.00519595,95882.0,95881.0,0.02496648]
[1739873212645,0.00519595,95882.0,95881.0,0.23357498]
[1739873221441,0.36095641,95901.0,95881.0,0.02496648]
[1739873221647,0.0415,95898.0,95890.0,0.208587]
[1739873221944,0.0415,95898.0,95891.0,0.0411]
[1739873222149,0.00519756,95892.0,95891.0,0.0411]
[1739873222444,0.00519756,95892.0,95890.0,0.208587]
[1739873222745,0.00519756,95892.0,95891.0,0.2085868]
[1739873224544,0.00519756,95892.0,95891.0,0.18772813]
[1739873225457,0.00519756,95892.0,95891.0,0.18872813]
[1739873225955,0.00015641,95901.0,95900.0,0.2085672]
[1739873226141,0.00015641,95901.0,95900.0,0.5693672]
[1739873226545,0.0053,95901.0,95900.0,0.5693672]
[1739873227247,0.0053,95901.0,95900.0,0.3608]
[1739873227554,0.0063,95901.0,95900.0,0.3608]
[1739873228056,0.0083,95901.0,95900.0,0.3608]
[1739873228657,0.0083,95901.0,95900.0,0.4452]
[1739873229552,0.0083,95901.0,95900.0,0.0844]
[1739873231358,0.0083,95901.0,95900.0,0.0411]
[1739873232958,0.0083,95901.0,95897.0,0.0402]
[1739873233858,0.0083,95901.0,95892.0,0.3608]
[1739873234063,0.2085823,95894.0,95884.0,0.081]
[1739873234356,0.2085847,95892.0,95884.0,0.081]
[1739873234557,0.0442,95891.0,95884.0,0.081]
[1739873234764,0.1158,95890.0,95884.0,0.081]
[1739873235263,0.1158,95890.0,95884.0,0.084]
[1739873235857,0.1158,95890.0,95884.0,0.086]
[1739873236364,0.3243893,95890.0,95884.0,0.086]
[1739873236564,0.2085893,95890.0,95884.0,0.086]
[1739873237367,0.0442,95891.0,95884.0,0.2946017]
[1739873237957,0.2085709,95899.0,95884.0,0.086]
[1739873238165,0.127,95900.0,95884.0,0.086]
[1739873238366,0.2085742,95897.0,95889.0,0.2085911]
[1739873238666,0.2085786,95895.0,95885.0,0.208599]
[1739873240057,0.2085786,95895.0,95887.0,0.2085948]
[1739873240262,0.23133454,95900.0,95887.0,0.2085948]
[1739873240564,0.80070274,95900.0,95887.0,0.2085948]
[1739873240764,0.2085703,95899.0,95887.0,0.2085948]
[1739873241161,0.2085703,95899.0,95889.0,0.001]
[1739873241561,0.2085703,95899.0,95889.0,0.209591]
[1739873241758,0.59273455,95900.0,95891.0,0.2085858]
[1739873241962,0.3608,95900.0,95887.0,0.003]
[1739873242170,0.11488,95899.0,95898.0,0.2085716]
[1739873242367,0.0053,95901.0,95896.0,0.1262]
[1739873242676,0.0053,95901.0,95900.0,0.15163005]
[1739873244681,0.0063,95901.0,95900.0,0.15163005]
[1739873244869,0.0073,95901.0,95900.0,0.15163005]
[1739873245767,0.0063,95901.0,95900.0,0.15163005]
[1739873245975,0.0083,95901.0,95900.0,0.15163005]
[1739873246171,0.0083,95901.0,95896.0,0.1262]
[1739873246675,0.0526,95901.0,95895.0,0.3608]
[1739873246875,0.51592,95900.0,95891.0,0.0411]
[1739873247066,0.4012,95900.0,95891.0,0.0411]
[1739873247976,0.2085715,95899.0,95891.0,0.0411]
[1739873248175,0.00056001,95900.0,95896.0,0.2085756]
[1739873248372,0.0063,95901.0,95896.0,0.2085756]
[1739873248563,0.0053,95901.0,95897.0,0.04969899]
[1739873249366,0.0053,95901.0,95897.0,0.25827269]
[1739873250070,0.0053,95901.0,95897.0,0.04969899]
[1739873250275,0.0063,95901.0,95897.0,0.04969899]
[1739873251270,0.0073,95901.0,95897.0,0.04969899]
[1739873252572,0.215867,95901.0,95897.0,0.0415]
[1739873253481,0.0073,95901.0,95897.0,0.0415]
[1739873253873,0.0073,95901.0,95898.0,0.2085711]
[1739873254371,0.0073,95901.0,95900.0,0.5693672]
[1739873254571,0.0073,95901.0,95900.0,0.50612491]
[1739873255875,0.0083,95901.0,95900.0,0.50612491]
[1739873257075,0.0073,95901.0,95900.0,0.50612491]
[1739873257283,0.0083,95901.0,95900.0,0.50612491]
[1739873258990,0.0083,95901.0,95900.0,0.14532491]
[1739873259176,0.0083,95901.0,95900.0,0.2085672]
[1739873260784,0.0083,95901.0,95900.0,0.18771049]
[1739873261880,0.0083,95901.0,95899.0,0.3608]
[1739873262283,0.2519672,95900.0,95897.0,0.0415]
[1739873262786,0.2519672,95900.0,95894.0,0.3608]
[1739873262787,0.20857,95899.0,95894.0,0.3608]
[1739873262985,0.0434,95900.0,95894.0,0.3608]
[1739873263182,0.11344,95899.0,95894.0,0.3608]
[1739873263385,0.11344,95899.0,95892.0,0.0432]
[1739873264092,0.11344,95899.0,95891.0,0.04182]
[1739873264288,0.0434,95900.0,95891.0,0.04182]
[1739873264289,0.0434,95900.0,95891.0,0.0411]
[1739873264489,0.2085778,95896.0,95882.0,0.2509055]
[1739873264685,0.0851,95895.0,95884.0,0.208602]
[1739873265574,0.0851,95895.0,95885.0,0.2085994]
[1739873265783,0.0851,95895.0,95891.0,0.001]
[1739873266678,0.0851,95895.0,95888.0,0.30476007]
[1739873267483,0.2085823,95894.0,95888.0,0.30476007]
[1739873268978,0.2085823,95894.0,95891.0,0.001]
[1739873269392,0.0851,95895.0,95891.0,0.001]
[1739873269692,0.2085846,95892.0,95888.0,0.30776007]
[1739873269893,0.2085846,95892.0,95888.0,0.30676007]
[1739873270192,0.2085846,95892.0,95888.0,0.30776007]
[1739873270685,0.2085846,95892.0,95888.0,0.30676007]
[1739873271285,0.0851,95895.0,95891.0,0.001]
[1739873271485,0.0849599,95902.0,95891.0,0.001]
[1739873271784,0.2085885,95891.0,95883.0,0.0413]
[1739873271980,0.2085885,95891.0,95888.0,0.002]
[1739873272381,0.2085885,95891.0,95883.0,0.0413]
[1739873272597,0.2085885,95891.0,95888.0,0.001]
[1739873273092,0.2085885,95891.0,95888.0,0.003]
[1739873273288,0.2085885,95891.0,95888.0,0.002]
[1739873274685,0.2481894,95890.0,95888.0,0.002]
[1739873275992,0.2481894,95890.0,95888.0,0.003]
[1739873276182,0.0396,95890.0,95888.0,0.003]
[1739873276384,0.3204711,95889.0,95888.0,0.003]
[1739873276585,0.2085911,95889.0,95888.0,0.003]
[1739873278696,0.0396,95890.0,95888.0,0.003]
[1739873278898,0.11176,95889.0,95888.0,0.003]
[1739873279285,0.11176,95889.0,95888.0,0.00270001]
[1739873279286,0.3203511,95889.0,95888.0,0.00270001]
[1739873279491,0.2085911,95889.0,95888.0,0.00270001]
[1739873279900,0.2085911,95889.0,95888.0,0.003]
[1739873280400,0.2085911,95889.0,95888.0,0.00270001]
[1739873280800,0.2085911,95889.0,95888.0,0.003]
[1739873281997,0.2086064,95882.0,95881.0,0.00015641]
[1739873282296,0.5694064,95882.0,95881.0,0.00015641]
[1739873283292,0.6520064,95882.0,95881.0,0.00015641]
[1739873284000,0.6520064,95882.0,95881.0,0.004]
[1739873284301,0.4434,95882.0,95872.0,0.0847]
[1739873284501,0.2086259,95873.0,95872.0,0.0847]
[1739873285004,0.44404,95882.0,95872.0,0.0847]
[1739873285299,0.3608,95874.0,95872.0,0.07623001]
[1739873285500,0.0413,95873.0,95872.0,0.09893629]
[1739873285701,0.0413,95873.0,95872.0,0.10193629]
[1739873288689,0.0413,95873.0,95872.0,0.10393629]
[1739873288889,0.3608,95874.0,95872.0,0.31256439]
[1739873289094,0.3608,95874.0,95872.0,0.14383629]
[1739873289804,0.3608,95874.0,95873.0,0.2086259]
[1739873291506,0.3608,95874.0,95873.0,0.2106259]
[1739873292108,0.3608,95874.0,95873.0,0.002]
[1739873292404,0.47324,95874.0,95873.0,0.002]
[1739873292795,0.47324,95874.0,95873.0,0.004]
[1739873295203,0.47324,95874.0,95873.0,0.2126259]
[1739873295402,0.3608,95874.0,95873.0,0.2126259]
[1739873298211,0.3608,95874.0,95873.0,0.004]
[1739873298403,0.47256,95874.0,95873.0,0.004]
[1739873301200,0.47256,95874.0,95873.0,0.2126259]
[1739873301399,0.3608,95874.0,95873.0,0.2126259]
[1739873302706,0.3608,95874.0,95873.0,0.004]
[1739873302914,0.4724,95874.0,95873.0,0.004]
[1739873303803,0.6810238,95874.0,95873.0,0.004]
[1739873304004,0.5694238,95874.0,95873.0,0.004]
[1739873304205,0.3608,95874.0,95873.0,0.004]
[1739873304509,0.1116,95874.0,95873.0,0.2126259]
[1739873304714,0.36136001,95882.0,95874.0,0.2086236]
[1739873305008,0.2086088,95881.0,95874.0,0.2086236]
[1739873305211,0.2086088,95881.0,95874.0,0.18736125]
[1739873305411,0.3608,95882.0,95874.0,0.18736125]
[1739873305603,0.2086128,95880.0,95874.0,0.18736125]
[1739873306407,0.2086156,95878.0,95873.0,0.004]
[1739873306804,0.0395,95879.0,95873.0,0.004]
[1739873307010,0.3608,95874.0,95873.0,0.004]
[1739873307211,0.4724,95874.0,95873.0,0.002]
[1739873308510,0.4724,95874.0,95873.0,0.004]
[1739873312608,0.6810238,95874.0,95873.0,0.004]
[1739873312814,0.5694238,95874.0,95873.0,0.004]
[1739873313912,0.3608,95874.0,95873.0,0.004]
[1739873314120,0.47192,95874.0,95873.0,0.004]
[1739873315320,0.6805438,95874.0,95873.0,0.004]
[1739873315521,0.5694238,95874.0,95873.0,0.004]
[1739873317314,0.5694238,95874.0,95873.0,0.01397]
[1739873317515,0.2086238,95874.0,95873.0,0.01397]
[1739873318227,0.2086238,95874.0,95873.0,0.04847]